bitfinex-derivatives/quotes_BTCF0:USTF0_20251214
["timestamp","ask_amount","ask_price","bid_price","bid_amount"]
[1765736573003,0.44653886,88974.0,88973.0,0.00507271]
[1765736575505,0.44653886,88974.0,88973.0,0.03345271]
[1765736576712,0.44653886,88974.0,88973.0,0.00507271]
[1765736578008,0.44653886,88974.0,88973.0,0.00660787]
[1765736582109,0.44653886,88974.0,88973.0,0.06152787]
[1765736583122,0.44653886,88974.0,88973.0,0.03411787]
[1765736583412,0.44653886,88974.0,88973.0,0.00660787]
[1765736584904,0.44653886,88974.0,88973.0,0.06152787]
[1765736588612,0.44653886,88974.0,88973.0,0.03411787]
[1765736590214,0.44653886,88974.0,88973.0,0.06152787]
[1765736591713,0.08573886,88974.0,88973.0,0.06152787]
[1765736592020,0.44653886,88974.0,88973.0,0.06152787]
[1765736601029,0.44653886,88974.0,88973.0,0.00660787]
[1765736602226,0.50720417,88974.0,88973.0,0.00660787]
[1765736603322,0.50724638,88974.0,88973.0,0.00660787]
[1765736605231,0.86804638,88974.0,88973.0,0.00660787]
[1765736609231,0.81068638,88974.0,88973.0,0.06271787]
[1765736609433,0.38917886,88974.0,88973.0,0.06271787]
[1765736609631,0.02837886,88974.0,88973.0,0.06271787]
[1765736610736,0.02837886,88974.0,88973.0,0.06171787]
[1765736611033,0.02837886,88974.0,88973.0,0.06071787]
[1765736611728,0.02837886,88974.0,88973.0,0.06171787]
[1765736612132,0.02837886,88974.0,88973.0,0.06271787]
[1765736615934,0.02837886,88974.0,88973.0,0.06425303]
[1765736617938,0.00016855,88974.0,88973.0,0.06425303]
[1765736620743,0.02723855,88974.0,88973.0,0.06425303]
[1765736620944,0.05562855,88974.0,88973.0,0.06425303]
[1765736625144,0.00016855,88974.0,88973.0,0.06425303]
[1765736625340,0.02723855,88974.0,88973.0,0.06425303]
[1765736626844,0.00016855,88974.0,88973.0,0.06425303]
[1765736628953,0.02723855,88974.0,88973.0,0.06425303]
[1765736629153,0.05562855,88974.0,88973.0,0.06425303]
[1765736629448,0.05562855,88974.0,88973.0,0.00814303]
[1765736630155,0.05562855,88974.0,88973.0,0.06425303]
[1765736630846,0.08343609,88974.0,88973.0,0.06425303]
[1765736631045,0.08343609,88974.0,88973.0,0.07549143]
[1765736633255,0.05562855,88974.0,88973.0,0.07549143]
[1765736633450,0.08339111,88974.0,88973.0,0.07549143]
[1765736636446,0.02793111,88974.0,88973.0,0.07549143]
[1765736636855,0.05726111,88974.0,88973.0,0.07549143]
[1765736637055,0.08594111,88974.0,88973.0,0.07549143]
[1765736638650,0.39013,88981.0,88980.0,0.0854575]
[1765736638860,0.05712325,88981.0,88980.0,0.09160053]
[1765736639045,0.08580325,88981.0,88980.0,0.09160053]
[1765736639651,0.08680325,88981.0,88980.0,0.09160053]
[1765736640759,0.08780325,88981.0,88980.0,0.09160053]
[1765736641550,0.08680325,88981.0,88980.0,0.09160053]
[1765736642955,0.08680325,88981.0,88980.0,0.00614303]
[1765736642956,0.08580325,88981.0,88980.0,0.00614303]
[1765736643154,0.08580325,88981.0,88956.0,0.01666]
[1765736643155,0.0692503,88958.0,88957.0,0.05772855]
[1765736643746,0.05801,88958.0,88957.0,0.05772855]
[1765736644253,0.05801,88958.0,88957.0,0.06072855]
[1765736645851,0.05801,88958.0,88957.0,0.06372855]
[1765736650156,0.0692503,88958.0,88957.0,0.06372855]
[1765736650365,0.05801,88958.0,88957.0,0.06372855]
[1765736669586,0.08570799,88958.0,88957.0,0.06372855]
[1765736694502,0.44650799,88958.0,88957.0,0.06372855]
[1765736706522,0.05736,88941.0,88940.0,0.41678]
[1765736706724,0.44585799,88941.0,88940.0,0.05598]
[1765736707821,0.44585799,88941.0,88940.0,0.06198]
[1765736708411,0.44585799,88941.0,88940.0,0.05898]
[1765736708611,0.44585799,88941.0,88940.0,0.06198]
[1765736709917,0.45710049,88941.0,88940.0,0.06198]
[1765736710716,0.46955049,88941.0,88940.0,0.006]
[1765736711524,0.0686035,88933.0,88932.0,0.05614865]
[1765736711815,0.09630149,88933.0,88932.0,0.05614865]
[1765736712431,0.45710149,88933.0,88932.0,0.05614865]
[1765736712631,0.45710149,88933.0,88932.0,0.00016865]
[1765736713831,0.45710149,88933.0,88932.0,0.00516865]
[1765736717427,0.45710149,88933.0,88895.0,0.00552052]
[1765736717428,0.05736,88911.0,88910.0,0.0672263]
[1765736717830,0.05736,88911.0,88910.0,0.05598]
[1765736718132,0.05736,88911.0,88910.0,0.02755]
[1765736718324,0.0686064,88910.0,88902.0,0.00011339]
[1765736718528,0.0686064,88910.0,88906.0,0.01115155]
[1765736718529,0.09625488,88910.0,88906.0,0.01115155]
[1765736718722,0.09625488,88910.0,88909.0,0.02767472]
[1765736718916,0.08500848,88910.0,88909.0,0.05610472]
[1765736719228,0.08500848,88910.0,88902.0,0.00011339]
[1765736719230,0.0686073,88903.0,88902.0,0.00011339]
[1765736719430,0.81785578,88903.0,88902.0,0.00011339]
[1765736719631,0.0686107,88876.0,88875.0,0.41678]
[1765736719824,0.4294107,88876.0,88875.0,0.05598]
[1765736720031,0.05736,88869.0,88868.0,0.07357]
[1765736720333,0.05746224,88869.0,88868.0,0.07357]
[1765736720733,0.0112517,88868.0,88865.0,0.02755]
[1765736720936,0.05736,88866.0,88865.0,0.02755]
[1765736721237,0.05736,88866.0,88865.0,0.0672321]
[1765736721735,0.05736,88866.0,88865.0,0.05598]
[1765736722229,0.05736,88866.0,88865.0,0.05698]
[1765736722431,0.0686119,88866.0,88865.0,0.001]
[1765736722731,0.4294119,88866.0,88865.0,0.003]
[1765736722929,0.41816,88866.0,88865.0,0.003]
[1765736724135,0.41816,88866.0,88865.0,0.03055]
[1765736724431,0.41816,88866.0,88865.0,0.003]
[1765736724432,0.43142,88866.0,88865.0,0.003]
[1765736724932,0.41816,88866.0,88865.0,0.05898]
[1765736725133,0.38931,88866.0,88865.0,0.05898]
[1765736725322,0.41816,88866.0,88865.0,0.05898]
[1765736725521,0.3608,88866.0,88865.0,0.05898]
[1765736726136,0.38868,88866.0,88865.0,0.05898]
[1765736726840,0.41661,88866.0,88865.0,0.05898]
[1765736728127,0.41661,88866.0,88865.0,0.0702321]
[1765736728531,0.41661,88866.0,88865.0,0.05898]
[1765736730635,0.41661,88866.0,88865.0,0.003]
[1765736731140,0.05666,88843.0,88842.0,0.4472449]
[1765736731342,0.05676498,88843.0,88842.0,0.4472449]
[1765736731644,0.05676498,88843.0,88842.0,0.45851821]
[1765736731943,0.00010498,88843.0,88842.0,0.45851821]
[1765736732343,0.00110498,88843.0,88842.0,0.46351821]
[1765736733949,0.00110498,88843.0,88842.0,0.46751821]
[1765736737142,0.00110498,88843.0,88842.0,0.4562449]
[1765736737349,0.02962498,88843.0,88842.0,0.4562449]
[1765736737546,0.05776498,88843.0,88842.0,0.4562449]
[1765736738247,0.05776498,88843.0,88842.0,0.009]
[1765736738953,0.0679171,88825.0,88824.0,0.00010449]
[1765736739245,0.42879653,88825.0,88824.0,0.00010449]
[1765736740045,0.42879653,88825.0,88824.0,0.00310449]
[1765736740652,0.42879653,88825.0,88824.0,0.00410449]
[1765736741741,0.42879653,88825.0,88800.0,0.01665]
[1765736741742,0.05666,88804.0,88803.0,0.0576]
[1765736742648,8.317e-05,88804.0,88800.0,0.01665]
[1765736742958,0.05666,88800.0,88799.0,0.39051]
[1765736743247,0.05666,88800.0,88799.0,0.4184]
[1765736744051,0.00108317,88804.0,88803.0,0.0576]
[1765736744052,0.02960317,88804.0,88803.0,0.0576]
[1765736744350,0.05774317,88804.0,88803.0,0.0576]
[1765736745354,0.05774317,88804.0,88803.0,0.0586]
[1765736746053,0.05774317,88804.0,88803.0,0.0596]
[1765736746638,0.05774317,88804.0,88803.0,0.002]
[1765736746940,0.05774317,88804.0,88770.0,0.09107561]
[1765736746941,0.05666,88792.0,88791.0,0.39051]
[1765736747146,0.0679213,88792.0,88791.0,0.4184]
[1765736747554,0.0679222,88785.0,88784.0,0.0576]
[1765736747754,0.41759999,88785.0,88784.0,0.0576]
[1765736748757,0.41759999,88785.0,88784.0,0.0616]
[1765736748758,0.41859999,88785.0,88784.0,0.0616]
[1765736750444,0.41859999,88785.0,88784.0,0.004]
[1765736750756,0.446403,88785.0,88784.0,0.006]
[1765736750956,0.446403,88785.0,88784.0,0.004]
[1765736751258,0.446403,88785.0,88784.0,0.002]
[1765736752158,0.05666,88768.0,88767.0,0.07425]
[1765736752353,0.05666,88765.0,88764.0,0.02971]
[1765736752565,0.01136314,88768.0,88761.0,0.01138436]
[1765736752566,0.05666,88762.0,88761.0,0.01138436]
[1765736752752,0.05666,88762.0,88760.0,0.01665]
[1765736752955,0.05666,88761.0,88760.0,0.07425]
[1765736754161,0.001,88762.0,88761.0,0.0688653]
[1765736754464,9.864e-05,88768.0,88761.0,0.0688653]
[1765736754465,9.864e-05,88768.0,88767.0,0.0855145]
[1765736755063,0.05675864,88768.0,88767.0,0.0855145]
[1765736755259,0.05666,88761.0,88760.0,0.0865154]
[1765736755476,0.05666,88761.0,88760.0,0.0855154]
[1765736756152,0.02852,88761.0,88760.0,0.0855154]
[1765736756556,0.00109864,88768.0,88767.0,0.0844945]
[1765736756867,0.00309864,88768.0,88767.0,0.0844945]
[1765736757254,9.864e-05,88768.0,88767.0,0.0844945]
[1765736757858,0.00109864,88768.0,88767.0,0.0854945]
[1765736758059,0.05585864,88768.0,88767.0,0.0854945]
[1765736758958,0.05885864,88768.0,88767.0,0.0854945]
[1765736759563,0.00409864,88768.0,88767.0,0.0854945]
[1765736760664,0.00016895,88773.0,88772.0,0.0682139]
[1765736761763,0.00025828,88773.0,88772.0,0.0682139]
[1765736762360,0.00225828,88773.0,88772.0,0.0682139]
[1765736762755,0.00325828,88773.0,88772.0,0.0682139]
[1765736763161,0.41556,88805.0,88792.0,0.01628]
[1765736763356,0.0660203,88801.0,88800.0,0.07323]
[1765736763660,0.09375994,88801.0,88800.0,0.07323]
[1765736763862,0.08249964,88801.0,88800.0,0.07323]
[1765736764164,4.124e-05,88801.0,88800.0,0.07323]
[1765736764353,0.02722124,88801.0,88800.0,0.07323]
[1765736764556,0.05499612,88801.0,88800.0,0.07323]
[1765736764759,0.02722124,88801.0,88800.0,0.07323]
[1765736765061,4.124e-05,88801.0,88800.0,0.43403]
[1765736765654,0.05480124,88801.0,88800.0,0.07323]
[1765736765965,0.05880124,88801.0,88800.0,0.07323]
[1765736766356,0.03086183,88801.0,88800.0,0.07423]
[1765736766551,0.00504124,88801.0,88800.0,0.07423]
[1765736767163,0.00016895,88809.0,88808.0,0.0844893]
[1765736767556,0.02799323,88809.0,88808.0,0.0844893]
[1765736768651,0.03199323,88809.0,88808.0,0.0844893]
[1765736769255,0.03599323,88809.0,88808.0,0.0854893]
[1765736769959,0.03199323,88809.0,88808.0,0.0844893]
[1765736770159,0.03299323,88809.0,88808.0,0.0854893]
[1765736770868,0.03399323,88809.0,88808.0,0.0854893]
[1765736771263,0.02999323,88809.0,88808.0,0.0854893]
[1765736771765,0.03099323,88809.0,88808.0,0.0854893]
[1765736772157,0.11546639,88831.0,88830.0,0.05695]
[1765736772366,0.05476,88831.0,88830.0,0.05695]
[1765736773464,0.06076,88831.0,88830.0,0.05795]
[1765736774769,0.06576,88831.0,88830.0,0.05795]
[1765736775358,0.06276,88831.0,88830.0,0.05795]
[1765736776061,0.06276,88831.0,88830.0,0.05695]
[1765736776062,0.004,88831.0,88830.0,0.05695]
[1765736776259,0.008,88831.0,88830.0,0.05795]
[1765736776464,0.004,88831.0,88830.0,0.05795]
[1765736776671,0.008,88831.0,88830.0,0.05795]
[1765736776859,0.004,88831.0,88830.0,0.05695]
[1765736777059,0.008,88831.0,88830.0,0.05795]
[1765736778359,0.00016895,88839.0,88830.0,0.05795]
[1765736778560,0.05476,88827.0,88826.0,0.41775]
[1765736778761,0.05476,88827.0,88826.0,0.3608]
[1765736778962,0.003,88831.0,88822.0,0.00016895]
[1765736778963,0.0660174,88823.0,88822.0,0.00016895]
[1765736779163,0.4268174,88823.0,88822.0,0.00016895]
[1765736779566,0.05476,88818.0,88817.0,0.011258]
[1765736781269,0.3648,88823.0,88809.0,0.00016895]
[1765736781270,0.05476,88810.0,88809.0,0.00016895]
[1765736781473,0.02718,88810.0,88809.0,0.06837815]
[1765736781667,0.05476,88810.0,88809.0,0.06837815]
[1765736782970,0.05476,88810.0,88809.0,0.06937815]
[1765736782971,0.05576,88810.0,88809.0,0.06937815]
[1765736785171,0.05576,88810.0,88809.0,0.00116895]
[1765736785682,0.001,88810.0,88809.0,0.41891895]
[1765736785973,0.00016895,88818.0,88817.0,0.0682082]
[1765736786272,0.3608,88834.0,88833.0,0.05929]
[1765736786476,0.3879084,88834.0,88833.0,0.05929]
[1765736786778,0.4157984,88834.0,88833.0,0.0705461]
[1765736787080,0.4444384,88834.0,88833.0,0.0705461]
[1765736787275,0.4444461,88834.0,88833.0,0.0705461]
[1765736788069,0.41733,88834.0,88833.0,0.0705461]
[1765736788270,0.44445788,88834.0,88833.0,0.0705461]
[1765736788666,0.44845788,88834.0,88833.0,0.0705461]
[1765736788866,0.45345788,88834.0,88833.0,0.0715461]
[1765736789073,0.4464989,88834.0,88833.0,0.0715461]
[1765736789273,0.4434989,88834.0,88833.0,0.0715461]
[1765736789473,0.4384989,88834.0,88833.0,0.0705461]
[1765736789784,0.4404989,88834.0,88833.0,0.0705461]
[1765736790776,0.05684,88825.0,88824.0,0.07554]
[1765736791088,0.05684,88825.0,88824.0,0.0867973]
[1765736791384,0.35684102,88834.0,88833.0,0.0688761]
[1765736791385,0.05984,88834.0,88833.0,0.0688761]
[1765736791579,0.08699338,88834.0,88833.0,0.0688761]
[1765736791779,0.08399338,88834.0,88833.0,0.0688761]
[1765736791977,0.001,88834.0,88833.0,0.0688761]
[1765736792380,0.02816787,88834.0,88833.0,0.0688761]
[1765736792574,0.36096895,88842.0,88840.0,0.0863952]
[1765736792575,0.05684,88841.0,88840.0,0.0863952]
[1765736792775,0.08400786,88841.0,88840.0,0.0863952]
[1765736794776,0.08500786,88841.0,88840.0,0.0863952]
[1765736795387,0.08700786,88841.0,88840.0,0.0863952]
[1765736795798,0.0680961,88833.0,88832.0,0.03910495]
[1765736796002,0.44480786,88833.0,88832.0,0.06904495]
[1765736796201,0.003,88841.0,88832.0,0.06904495]
[1765736796202,0.003,88841.0,88840.0,0.0863952]
[1765736796393,0.03018227,88841.0,88840.0,0.0863952]
[1765736796796,0.003,88841.0,88840.0,0.0863952]
[1765736796996,0.001,88841.0,88840.0,0.0863952]
[1765736797393,0.00016895,88842.0,88841.0,0.05762]
[1765736798700,0.3608,88852.0,88851.0,0.0688738]
[1765736798897,0.3608,88861.0,88851.0,0.0112538]
[1765736799110,0.41764,88861.0,88860.0,0.05762]
[1765736799301,0.4448116,88861.0,88860.0,0.0688727]
[1765736799701,0.0840116,88861.0,88860.0,0.0688727]
[1765736800210,0.0271716,88861.0,88860.0,0.0688727]
[1765736800802,0.02864,88853.0,88852.0,0.00016885]
[1765736801109,0.068095,88842.0,88841.0,0.001]
[1765736801307,0.4560475,88842.0,88841.0,0.001]
[1765736801503,0.05684,88836.0,88835.0,0.0112559]
[1765736802004,0.05684,88836.0,88835.0,0.0688759]
[1765736802200,0.0282,88836.0,88835.0,0.0688759]
[1765736802414,0.02715425,88836.0,88835.0,0.0688759]
[1765736802711,0.02836885,88844.0,88843.0,0.0688749]
[1765736802908,0.02836885,88844.0,88839.0,0.01752]
[1765736802909,0.05684,88840.0,88839.0,0.0564553]
[1765736803104,0.02732499,88844.0,88832.0,0.0863963]
[1765736803105,0.05684,88833.0,88832.0,0.0863963]
[1765736803304,0.05684,88833.0,88832.0,0.0112563]
[1765736803718,0.0292,88842.0,88841.0,0.0688751]
[1765736804014,0.0292,88842.0,88830.0,0.37832]
[1765736804015,0.001,88840.0,88831.0,0.0112564]
[1765736804213,0.02864,88834.0,88833.0,0.0112561]
[1765736804405,0.05684,88834.0,88833.0,0.0112561]
[1765736805403,0.08399096,88834.0,88833.0,0.0112561]
[1765736806319,0.08399096,88834.0,88833.0,0.0132561]
[1765736806618,0.08399096,88834.0,88833.0,0.0142561]
[1765736807514,0.08399096,88834.0,88833.0,0.0718761]
[1765736808713,0.08399096,88834.0,88833.0,0.0419361]
[1765736809910,0.08399096,88834.0,88833.0,0.0718761]
[1765736810307,0.08399096,88834.0,88833.0,0.003]
[1765736810514,0.44479096,88834.0,88833.0,0.003]
[1765736810716,0.05684,88828.0,88816.0,0.0112583]
[1765736810910,0.09524776,88828.0,88819.0,0.0112579]
[1765736811717,0.08399096,88828.0,88827.0,0.01142575]
[1765736812313,0.08399096,88828.0,88827.0,0.06904575]
[1765736812513,0.08399096,88828.0,88827.0,0.07104575]
[1765736813021,0.08399096,88828.0,88827.0,0.07404575]
[1765736814008,0.05535096,88828.0,88827.0,0.07404575]
[1765736815418,0.08399096,88828.0,88827.0,0.07404575]
[1765736815618,0.08399096,88828.0,88827.0,0.00516885]
[1765736816116,0.02715096,88828.0,88827.0,0.07621575]
[1765736816622,0.05453096,88828.0,88827.0,0.07621575]
[1765736816821,0.08292096,88828.0,88827.0,0.42575885]
[1765736817125,0.4440752,88828.0,88827.0,0.00516885]
[1765736821110,0.05577,88812.0,88811.0,0.0112588]
[1765736821322,0.05577,88812.0,88811.0,0.0685088]
[1765736821716,0.3608,88817.0,88816.0,0.0685083]
[1765736821917,0.3608,88828.0,88827.0,0.0685069]
[1765736822126,0.41566309,88828.0,88827.0,0.0685069]
[1765736822315,0.44405309,88828.0,88827.0,0.0685069]
[1765736822826,0.41566309,88828.0,88827.0,0.0685069]
[1765736823017,0.3608,88828.0,88827.0,0.0705069]
[1765736823218,0.3608,88828.0,88827.0,0.0725069]
[1765736828025,0.00016885,88836.0,88835.0,0.0685059]
[1765736828026,0.02754885,88836.0,88835.0,0.0685059]
[1765736828227,0.08342395,88836.0,88835.0,0.0685059]
[1765736829031,0.05577,88828.0,88827.0,0.03385]
[1765736829244,0.05577,88828.0,88827.0,0.0132569]
[1765736829436,0.05577,88828.0,88827.0,0.002]
[1765736829729,0.05577,88827.0,88826.0,0.0112569]
[1765736830434,0.08329146,88827.0,88826.0,0.0112569]
[1765736831336,0.05577,88822.0,88821.0,0.0112576]
[1765736831636,0.05577,88820.0,88810.0,0.0112589]
[1765736831833,0.08329146,88820.0,88810.0,0.0112589]
[1765736832740,0.08429146,88820.0,88819.0,0.00216885]
[1765736833135,0.08429146,88820.0,88819.0,0.00416885]
[1765736842144,0.44509146,88820.0,88819.0,0.00416885]
[1765736842647,0.05577,88795.0,88794.0,0.3608]
[1765736842836,0.05577,88785.0,88784.0,0.0849122]
[1765736844638,0.05677,88785.0,88784.0,0.0909122]
[1765736845441,0.05677,88785.0,88784.0,0.0969122]
[1765736847240,0.001,88785.0,88784.0,0.0969122]
[1765736847845,0.00016895,88793.0,88792.0,0.0838513]
[1765736848239,0.00016895,88793.0,88792.0,0.8446513]
[1765736849044,0.00016895,88793.0,88792.0,0.8486513]
[1765736849545,0.00116895,88793.0,88792.0,0.8536513]
[1765736850446,0.00016895,88793.0,88792.0,0.8486513]
[1765736850648,0.00116895,88793.0,88792.0,0.8486513]
[1765736851449,0.00116895,88793.0,88792.0,0.8446513]
[1765736851842,0.3608,88808.0,88807.0,0.0671894]
[1765736853242,0.41678,88808.0,88807.0,0.0671894]
[1765736853440,0.42078,88808.0,88807.0,0.0681894]
[1765736853847,0.42952,88808.0,88807.0,0.001]
[1765736854046,0.0759803,88800.0,88799.0,0.00016895]
[1765736854247,0.46457264,88800.0,88799.0,0.00016895]
[1765736856353,0.44557234,88800.0,88799.0,0.00016895]
[1765736856548,0.44757234,88800.0,88799.0,0.02899895]
[1765736856849,0.44757234,88800.0,88799.0,0.00016895]
[1765736857851,0.44757234,88800.0,88799.0,0.05609895]
[1765736858052,0.03106,88800.0,88799.0,0.05609895]
[1765736858348,0.003,88800.0,88799.0,0.05609895]
[1765736859758,0.05898,88800.0,88799.0,0.05609895]
[1765736859942,0.05798,88800.0,88799.0,0.05609895]
[1765736860143,0.003,88800.0,88799.0,0.05609895]
[1765736862143,0.002,88800.0,88799.0,0.05609895]
[1765736862343,0.001,88800.0,88799.0,0.05709895]
[1765736863041,0.00016895,88816.0,88799.0,0.05609895]
[1765736863241,0.09508207,88815.0,88814.0,0.02883]
[1765736864653,0.09908207,88815.0,88814.0,0.02883]
[1765736865456,0.05598,88809.0,88808.0,0.07259]
[1765736865751,0.08382367,88809.0,88808.0,0.07259]
[1765736867548,0.08582367,88809.0,88808.0,0.07359]
[1765736867763,0.08882367,88809.0,88808.0,0.07359]
[1765736870656,0.03284367,88809.0,88808.0,0.07359]
[1765736870956,0.03306,88809.0,88808.0,0.07359]
[1765736871349,0.06092893,88809.0,88808.0,0.07359]
[1765736871550,0.03306,88809.0,88808.0,0.07359]
[1765736872160,0.08885039,88809.0,88808.0,0.07359]
[1765736872757,0.06098,88809.0,88808.0,0.07359]
[1765736872950,0.03306,88809.0,88808.0,0.07359]
[1765736873151,0.08885031,88809.0,88808.0,0.07359]
[1765736873359,0.10010951,88809.0,88808.0,0.001]
[1765736873560,0.10884951,88809.0,88808.0,0.001]
[1765736874857,0.10010951,88809.0,88808.0,0.05693]
[1765736875050,0.08885031,88809.0,88808.0,0.0681893]
[1765736875254,0.08885031,88809.0,88808.0,0.05693]
[1765736875952,0.08885031,88809.0,88808.0,0.02983]
[1765736876763,0.08885031,88809.0,88808.0,0.001]
[1765736881266,0.10186031,88809.0,88808.0,0.001]
[1765736881660,0.08885031,88809.0,88808.0,0.05765]
[1765736881963,0.03287031,88809.0,88808.0,0.05765]
[1765736882467,0.05997031,88809.0,88808.0,0.05765]
[1765736882669,0.08727031,88809.0,88808.0,0.05765]
[1765736882853,0.08727031,88809.0,88808.0,0.001]
[1765736883569,0.08727031,88809.0,88808.0,0.02868]
[1765736884062,0.08727031,88809.0,88808.0,0.05765]
[1765736884365,0.03287031,88809.0,88808.0,0.05765]
[1765736884567,0.05997031,88809.0,88808.0,0.05765]
[1765736884866,0.08727031,88809.0,88808.0,0.05765]
[1765736885864,0.03287031,88809.0,88808.0,0.05765]
[1765736888770,0.05997031,88809.0,88808.0,0.05765]
[1765736891174,0.08727031,88809.0,88808.0,0.05765]
[1765736892671,0.03287031,88809.0,88808.0,0.05765]
[1765736893769,0.00016895,88816.0,88815.0,0.05665]
[1765736893978,0.00016895,88816.0,88815.0,0.0679084]
[1765736894966,0.00416895,88816.0,88815.0,0.0689084]
[1765736895166,0.00816895,88816.0,88815.0,0.0689084]
[1765736895674,0.00416895,88816.0,88815.0,0.0679084]
[1765736895876,0.00616895,88816.0,88815.0,0.0679084]
[1765736896469,0.00416895,88816.0,88815.0,0.0679084]
[1765736896669,0.00516895,88816.0,88815.0,0.0679084]
[1765736896876,0.00216895,88816.0,88815.0,0.0679084]
[1765736897572,0.00116895,88816.0,88815.0,0.0679084]
[1765736898568,0.00016895,88816.0,88815.0,0.0689084]
[1765736899576,0.4264564,88831.0,88830.0,0.0845765]
[1765736899766,0.45440333,88831.0,88830.0,0.0845765]
[1765736900365,0.38874693,88831.0,88830.0,0.0845765]
[1765736900666,0.44314693,88831.0,88830.0,0.0845765]
[1765736901180,0.44614693,88831.0,88830.0,0.0845765]
[1765736902179,0.39274693,88831.0,88830.0,0.0845765]
[1765736902374,0.3648,88831.0,88830.0,0.0845765]
[1765736902763,0.3628,88831.0,88830.0,0.0845765]
[1765736906980,0.3899,88831.0,88830.0,0.0845765]
[1765736907773,0.002,88831.0,88830.0,0.0845765]
[1765736908076,0.00016895,88839.0,88830.0,0.0845765]
[1765736908077,0.00016895,88839.0,88838.0,0.0690455]
[1765736908466,0.02786895,88839.0,88838.0,0.0690455]
[1765736908873,0.05554895,88839.0,88838.0,0.0690455]
[1765736909374,0.05854895,88839.0,88838.0,0.0700455]
[1765736909975,0.06154895,88839.0,88838.0,0.0700455]
[1765736910775,0.06154895,88839.0,88838.0,0.0122555]
[1765736911284,0.06154895,88839.0,88838.0,0.001]
[1765736911883,0.08926251,88839.0,88838.0,0.001]
[1765736919379,0.45006251,88839.0,88838.0,0.001]
[1765736921392,0.08926251,88839.0,88838.0,0.001]
[1765736921694,0.45006251,88839.0,88838.0,0.001]
[1765736922393,0.45006251,88839.0,88838.0,0.0294]
[1765736922592,0.45006251,88839.0,88838.0,0.0565]
[1765736923192,0.45006251,88839.0,88838.0,0.001]
[1765736926496,0.45006251,88839.0,88838.0,0.0565]
[1765736927994,0.45006251,88839.0,88838.0,0.001]
[1765736928890,0.45006251,88839.0,88838.0,0.0565]
[1765736930101,0.45006251,88839.0,88838.0,0.0294]
[1765736930302,0.45006251,88839.0,88838.0,0.001]
[1765736932301,0.08926251,88839.0,88838.0,0.001]
[1765736932605,0.45006251,88839.0,88838.0,0.001]
[1765736934103,0.45006251,88839.0,88838.0,0.0565]
[1765736934313,0.45006251,88839.0,88838.0,0.0294]
[1765736934506,0.45006251,88839.0,88838.0,0.001]
[1765736935200,0.45006251,88839.0,88838.0,0.0565]
[1765736937302,0.45006251,88839.0,88838.0,0.001]
[1765736949610,0.08926251,88839.0,88838.0,0.001]
[1765736949801,0.45006251,88839.0,88838.0,0.001]
[1765736954708,0.45006251,88839.0,88838.0,0.05844]
[1765736958008,0.08926251,88839.0,88838.0,0.05844]
[1765736958316,0.45006251,88839.0,88838.0,0.05844]
[1765736961420,0.08926251,88839.0,88838.0,0.05844]
[1765736961622,0.45006251,88839.0,88838.0,0.05844]
[1765736964421,0.08926251,88839.0,88838.0,0.05844]
[1765736964618,0.45006251,88839.0,88838.0,0.05844]
[1765736965009,0.45006251,88839.0,88838.0,0.001]
[1765736970618,0.08926251,88839.0,88838.0,0.001]
[1765736970921,0.45006251,88839.0,88838.0,0.001]
[1765736981422,0.45006251,88839.0,88838.0,0.00083092]
[1765736982120,0.45006251,88839.0,88838.0,0.05851092]
[1765736987532,0.08926251,88839.0,88838.0,0.05851092]
[1765736987732,0.45006251,88839.0,88838.0,0.05851092]
[1765736987920,0.45006251,88839.0,88838.0,0.00083092]
[1765736988122,0.45006251,88839.0,88838.0,0.02900092]
[1765736988621,0.45101137,88839.0,88838.0,0.02900092]
[1765736989327,0.45101137,88839.0,88838.0,0.00083092]
[1765737001231,0.45101137,88839.0,88838.0,0.05968092]
[1765737001626,0.39563137,88839.0,88838.0,0.05968092]
[1765737001826,0.11641639,88854.0,88853.0,0.05885]
[1765737002040,0.05671689,88854.0,88853.0,0.0701036]
[1765737002341,0.02856689,88854.0,88853.0,0.0701036]
[1765737002936,0.03456689,88854.0,88853.0,0.0711036]
[1765737003332,0.35188157,88857.0,88856.0,0.0701032]
[1765737003533,0.00016885,88862.0,88861.0,0.0701026]
[1765737003924,0.3608,88875.0,88860.0,0.01654]
[1765737004129,0.066961,88874.0,88873.0,0.05885]
[1765737004836,0.066961,88874.0,88873.0,0.0699671]
[1765737005141,0.066961,88874.0,88873.0,0.05885]
[1765737005541,0.067961,88874.0,88873.0,0.05885]
[1765737006038,0.067961,88874.0,88873.0,0.07036701]
[1765737007343,0.067961,88874.0,88873.0,0.05885]
[1765737008338,0.068961,88874.0,88873.0,0.05885]
[1765737008935,0.067961,88874.0,88873.0,0.05885]
[1765737009243,0.429761,88874.0,88873.0,0.05885]
[1765737009432,0.429761,88874.0,88873.0,0.069908]
[1765737015035,0.41851,88874.0,88873.0,0.069908]
[1765737015747,0.41851,88874.0,88873.0,0.05885]
[1765737016439,0.05771,88874.0,88873.0,0.05885]
[1765737016645,0.41751,88874.0,88873.0,0.05885]
[1765737016946,0.41851,88874.0,88873.0,0.05885]
[1765737017147,0.41751,88874.0,88873.0,0.05885]
[1765737017741,0.05671,88874.0,88873.0,0.07032528]
[1765737017941,0.41751,88874.0,88873.0,0.07032528]
[1765737021043,0.05671,88874.0,88873.0,0.07032528]
[1765737021350,0.41751,88874.0,88873.0,0.07032528]
[1765737022348,0.44539349,88874.0,88873.0,0.07032528]
[1765737023951,0.41751,88874.0,88873.0,0.07032528]
[1765737024151,0.44526018,88874.0,88873.0,0.07032528]
[1765737024947,0.44426018,88874.0,88873.0,0.07032528]
[1765737025142,0.44526018,88874.0,88873.0,0.07032528]
[1765737026141,0.38955018,88874.0,88873.0,0.07032528]
[1765737026339,0.001,88874.0,88873.0,0.47032528]
[1765737026544,0.00016885,88882.0,88881.0,0.06825]
[1765737026740,0.38982,88890.0,88889.0,0.067429]
[1765737026940,0.41776,88890.0,88889.0,0.067429]
[1765737027452,0.41776,88890.0,88889.0,0.05618]
[1765737028255,0.41776,88890.0,88889.0,0.05718]
[1765737029438,0.05508,88874.0,88873.0,0.02783]
[1765737029638,0.05508,88871.0,88870.0,0.02783]
[1765737029948,0.05508,88871.0,88870.0,0.05654]
[1765737030449,0.05508,88871.0,88870.0,0.07308]
[1765737030752,0.3608,88876.0,88875.0,0.0843308]
[1765737030953,0.41588,88876.0,88875.0,0.0843308]
[1765737032049,0.41588,88876.0,88875.0,0.0883308]